{"text_format":"3","workbook":"xlsx","n_sheets":2,"sheets":["Hóa đơn thanh toán","Thiết lập công ty"],"not_rendered":{"images":1,"defined_names":27},"read":"whole","date_system":"1900"}

{"sheet":"Hóa đơn thanh toán","index":0,"n_rows":35,"n_cols":7,"rows_kept":35,"merged":[[1,1,1,2],[1,3,2,4],[1,6,2,6],[3,3,3,4],[4,3,4,4],[5,3,5,4],[23,1,23,3],[24,1,24,3],[25,1,25,3],[26,1,26,3],[34,1,34,4]]}
[null,"HÓA ĐƠN","0005"]
[null,{"$f":"TODAY()","v":"2018-07-13"},null,{"$f":"Tổng_hóa_đơn","v":2230200},null," ","Thiết lập công ty"]
[null,"HẠN THANH TOÁN TRƯỚC:",{"$f":"TODAY()+15","v":"2018-07-28"},null,null," "]
[null,"KIM ABERCROMBIE",null,"ADVENTURE WORKS"]
[null,"Fabrikam, Inc.",null,"23456 Maple Street"]
[null,"1234 First Street",null,"Orange Grove, CA 09876"]
[null,"Forest,  OR 12345"]
[null,"SỐ LƯỢNG","CHI TIẾT","ĐƠN GIÁ","TỔNG GIÁ TRỊ MỖI MẶT HÀNG"]
[null,2,"Tiện ích",{"v":418600,"d":"418,600.00"},{"$f":"IFERROR(Chi_tiết_hóa_đơn[[#This Row],[ĐƠN GIÁ]]*Chi_tiết_hóa_đơn[[#This Row],[SỐ LƯỢNG]],\"\")","v":{"v":837200,"d":"837,200.00"}}]
[null,5,"Máy giặt",{"v":278600,"d":"278,600.00"},{"$f":"IFERROR(Chi_tiết_hóa_đơn[[#This Row],[ĐƠN GIÁ]]*Chi_tiết_hóa_đơn[[#This Row],[SỐ LƯỢNG]],\"\")","v":{"v":1393000,"d":"1,393,000.00"}}]
[{"$nulls":4},{"$f":"IFERROR(Chi_tiết_hóa_đơn[[#This Row],[ĐƠN GIÁ]]*Chi_tiết_hóa_đơn[[#This Row],[SỐ LƯỢNG]],\"\")","v":0}]
[{"$nulls":4},{"$f":"IFERROR(Chi_tiết_hóa_đơn[[#This Row],[ĐƠN GIÁ]]*Chi_tiết_hóa_đơn[[#This Row],[SỐ LƯỢNG]],\"\")","v":0}]
[{"$nulls":4},{"$f":"IFERROR(Chi_tiết_hóa_đơn[[#This Row],[ĐƠN GIÁ]]*Chi_tiết_hóa_đơn[[#This Row],[SỐ LƯỢNG]],\"\")","v":0}]
[{"$nulls":4},{"$f":"IFERROR(Chi_tiết_hóa_đơn[[#This Row],[ĐƠN GIÁ]]*Chi_tiết_hóa_đơn[[#This Row],[SỐ LƯỢNG]],\"\")","v":0}]
[{"$nulls":4},{"$f":"IFERROR(Chi_tiết_hóa_đơn[[#This Row],[ĐƠN GIÁ]]*Chi_tiết_hóa_đơn[[#This Row],[SỐ LƯỢNG]],\"\")","v":0}]
[{"$nulls":4},{"$f":"IFERROR(Chi_tiết_hóa_đơn[[#This Row],[ĐƠN GIÁ]]*Chi_tiết_hóa_đơn[[#This Row],[SỐ LƯỢNG]],\"\")","v":0}]
[{"$nulls":4},{"$f":"IFERROR(Chi_tiết_hóa_đơn[[#This Row],[ĐƠN GIÁ]]*Chi_tiết_hóa_đơn[[#This Row],[SỐ LƯỢNG]],\"\")","v":0}]
[{"$nulls":4},{"$f":"IFERROR(Chi_tiết_hóa_đơn[[#This Row],[ĐƠN GIÁ]]*Chi_tiết_hóa_đơn[[#This Row],[SỐ LƯỢNG]],\"\")","v":0}]
[{"$nulls":4},{"$f":"IFERROR(Chi_tiết_hóa_đơn[[#This Row],[ĐƠN GIÁ]]*Chi_tiết_hóa_đơn[[#This Row],[SỐ LƯỢNG]],\"\")","v":0}]
[{"$nulls":4},{"$f":"IFERROR(Chi_tiết_hóa_đơn[[#This Row],[ĐƠN GIÁ]]*Chi_tiết_hóa_đơn[[#This Row],[SỐ LƯỢNG]],\"\")","v":0}]
[{"$nulls":4},{"$f":"IFERROR(Chi_tiết_hóa_đơn[[#This Row],[ĐƠN GIÁ]]*Chi_tiết_hóa_đơn[[#This Row],[SỐ LƯỢNG]],\"\")","v":0}]
[{"$nulls":4},{"$f":"IFERROR(Chi_tiết_hóa_đơn[[#This Row],[ĐƠN GIÁ]]*Chi_tiết_hóa_đơn[[#This Row],[SỐ LƯỢNG]],\"\")","v":0}]
[{"$nulls":4},{"$f":"IFERROR(Chi_tiết_hóa_đơn[[#This Row],[ĐƠN GIÁ]]*Chi_tiết_hóa_đơn[[#This Row],[SỐ LƯỢNG]],\"\")","v":0}]
[null,"Chiết khấu"]
[null,"Tổng số ròng",null,null,{"$f":"SUM(Chi_tiết_hóa_đơn[TỔNG GIÁ TRỊ MỖI MẶT HÀNG])-E24","v":{"v":2230200,"d":"2,230,200.00 ₫"}}]
[null,"Thuế"]
[null,{"$f":"\"TỔNG \" & \"(\" & REPT(Thiết_lập_công_ty_Viết_tắt_tiền_tệ_của_bạn,LEN(Thiết_lập_công_ty_Viết_tắt_tiền_tệ_của_bạn)>0) & \")\"","v":"TỔNG (VND)"},null,null,{"$f":"IFERROR(E25+E26, \"\")","v":{"v":2230200,"d":"2,230,200.00 ₫"}}]
[null,"CHI TIẾT THANH TOÁN",null,null,"THÔNG TIN KHÁC"]
[null,"Tên bên thụ hưởng:",{"$f":" Thiết_lập_công_ty_Tên_ngân_hàng_thụ_hưởng","v":"Adventure Works"},null,{"$f":"IFERROR(Thiết_lập_công_ty_Tên_của_bạn,\"\")","v":""}]
[null,"Tên ngân hàng:",{"$f":"Thiết_lập_công_ty_Tên_ngân_hàng","v":"Woodgrove Bank"},null,{"$f":"IFERROR(\"Điện thoại: \" & Thiết_lập_công_ty_Điện_thoại_của_bạn,\"\")","v":"Điện thoại: 425-555-0150"}]
[null,"Địa chỉ ngân hàng:",{"$f":"Thiết_lập_công_ty_Địa_chỉ_ngân_hàng","v":"234 Main St. Orange Grove, CA 09876"},null,{"$f":"IFERROR(\"Fax: \" & Thiết_lập_công_ty_Fax_của_bạn,\"\")","v":"Fax: 425-555-0151"}]
[null,"Mã số tài khoản:",{"$f":"Thiết_lập_công_ty_Tài_khoản_ngân_hàng","v":1234567},null,{"$f":"IFERROR(Thiết_lập_công_ty_URL_của_bạn,\"\")","v":"Adventure-Works.com"}]
[null,"Số định tuyến (Mã SWIFT):",{"$f":"Thiết_lập_công_ty_Định_tuyến_ngân_hàng","v":9876543210},null,{"$f":"IFERROR(Thiết_lập_công_ty_Email_của_bạn,\"\")","v":"Accounting@Adventure-Works.com"}]
[null,"Tham chiếu thanh toán:",{"$f":"Hiển_thị_số_hóa_đơn","v":"0005"},null,{"$f":"IFERROR(IF(LEN(Client_PO),\"Contract/PO: \" & Client_PO,\"\"),\"\")","v":""}]
[null,{"$f":"UPPER(\"Phải thanh toán bằng chuyển khoản ngân hàng hoặc séc trả cho \" & Thiết_lập_công_ty_Người_được_hưởng_séc& \".\")","v":"PHẢI THANH TOÁN BẰNG CHUYỂN KHOẢN NGÂN HÀNG HOẶC SÉC TRẢ CHO ADVENTURE WORKS."}]

{"sheet":"Thiết lập công ty","index":1,"n_rows":20,"n_cols":5,"rows_kept":20}
[null,"THIẾT LẬP CÔNG TY"]
[null,"CHI TIẾT CÔNG TY LẬP HÓA ĐƠN","GIÁ TRỊ",null,"Hóa đơn thanh toán"]
[null,"Tên","Greg Akselrod"]
[null,"Tên công ty","ADVENTURE WORKS"]
[null,"Dòng địa chỉ 1","23456 Maple Street"]
[null,"Dòng địa chỉ 2","Orange Grove, CA 09876"]
[null,"Dòng địa chỉ 3"]
[null,"Dòng địa chỉ 4"]
[null,"Dòng địa chỉ 5"]
[null,"Điện thoại","425-555-0150"]
[null,"Fax","425-555-0151"]
[null,"Website","Adventure-Works.com"]
[null,"Email","Accounting@Adventure-Works.com"]
[null,"Viết tắt tiền tệ","VND"]
[null,"Tên bên thụ hưởng để thực hiện điện chuyển khoản ngân hàng","Adventure Works"]
[null,"Tên ngân hàng","Woodgrove Bank"]
[null,"Địa chỉ ngân hàng","234 Main St. Orange Grove, CA 09876"]
[null,"Mã số tài khoản",1234567]
[null,"Số định tuyến (Mã SWIFT)",9876543210]
[null,"Thanh toán séc cho","Adventure Works"]